fUST/lending_fUST_20240430
["ID","MTS","AMOUNT","RATE_DAILY","PERIOD"]
[324920922,1714420240939,-506.91876456,0.00041096,31]
[324920924,1714420240947,-506.91876456,0.00041096,31]
[324920926,1714420240954,-506.91876456,0.00041096,31]
[324920928,1714420240962,-506.91876456,0.00041096,31]
[324920930,1714420240969,-506.91876456,0.00041096,31]
[324920932,1714420240977,-506.91876456,0.00041096,31]
[324920934,1714420240984,-506.91876456,0.00041096,31]
[324920935,1714420240992,-506.91876456,0.00041096,31]
[324920937,1714420240999,-506.91876456,0.00041096,31]
[324920939,1714420241007,-506.91876456,0.00041096,31]
[324920941,1714420241015,-506.91876456,0.00041096,31]
[324920943,1714420241021,-506.91876456,0.00041096,31]
[324920945,1714420241030,-506.91876456,0.00041096,31]
[324920947,1714420241041,-506.91876456,0.00041096,31]
[324920949,1714420241048,-506.91876456,0.00041096,31]
[324920951,1714420241055,-506.91876456,0.00041096,31]
[324920952,1714420241061,-506.91876456,0.00041096,31]
[324920953,1714420241069,-506.91876456,0.00041096,31]
[324920954,1714420241076,-506.91876456,0.00041096,31]
[324920956,1714420241083,-506.91876456,0.00041096,31]
[324920957,1714420241090,-153.93095891,0.00041127,30]
[324920959,1714420241098,-192303.43205922,0.000413,60]
[324920961,1714420241105,-156.18617837,0.00041308,30]
[324920963,1714420241114,-152.83597317,0.00041364,30]
[324920965,1714420241125,-162.0,0.0004137,90]
[324920966,1714420241135,-404.099999,0.000414,15]
[324920967,1714420241144,-167.65427107,0.00041452,30]
[324920968,1714420241153,-180.74166292,0.00041458,2]
[324920969,1714420241162,-44444.0,0.00041458,5]
[324920970,1714420241171,-491.08646102,0.00041489,30]
[324920971,1714420241180,-177.0,0.000415,18]
[324920972,1714420241189,-157.77106,0.00041552,2]
[324920973,1714420241198,-3864.038183,0.00041553,120]
[324920974,1714420241208,-271.08,0.00041557,7]
[324920975,1714420241217,-271.08,0.00041557,7]
[324920976,1714420241227,-271.08,0.00041557,7]
[324920977,1714420241236,-271.08,0.00041557,7]
[324920978,1714420241245,-271.08,0.00041557,7]
[324920979,1714420241254,-271.08,0.00041557,7]
[324920980,1714420241263,-271.08,0.00041557,7]
[324920981,1714420241273,-271.08,0.00041557,7]
[324920982,1714420241282,-271.08,0.00041557,7]
[324920983,1714420241292,-271.08,0.00041557,7]
[324920984,1714420241301,-2401.59068717,0.00041558,2]
[324920985,1714420241310,-1452.47576498,0.00041558,4]
[324920986,1714420241319,-154.78330338,0.00041558,68]
[324920987,1714420241329,-6073.25093483,0.00041558,20]
[324920988,1714420241338,-154.78330338,0.00041558,15]
[324920990,1714420241347,-2000.0,0.00041558,2]
[324920992,1714420241356,-175290.00946481,0.00041558,120]
[324920994,1714420241366,-1116.6496876,0.00041558,4]
[324920996,1714420241375,-14787.78197068,0.00041864,7]
[324920997,1714420241384,-353285.43332413,0.00041865,90]
[324920998,1714420241398,-20222.12370632,0.00041865,90]
[324920999,1714420241410,-623.05077972,0.00041865,90]
[324921054,1714420241911,-412.08755327,0.00041865,90]
[324921179,1714420242918,-18244.40435927,0.00041865,90]
[324922267,1714420410050,556.83452615,9.999e-05,2]
[324922334,1714421432065,-166.666666,0.00017796,2]
[324922336,1714421432074,-197.19653738,0.00018364,2]
[324922338,1714421432085,-166.666666,0.00018364,2]
[324922340,1714421432095,-300.0,0.00018652,2]
[324922342,1714421432104,-77.46641489,0.00018654,2]
[324922344,1714421432115,-2554.4,0.00018654,2]
[324922347,1714421432126,-4221.40978551,0.00018654,2]
[324922925,1714421438035,-2499.75676758,0.00018654,2]
[324922927,1714421438046,-15546.96703202,0.00018654,2]
[324922929,1714421438055,-9545.01958132,0.0001888,2]
[324922931,1714421438065,-326.95692275,0.000189,2]
[324922932,1714421438074,-160.096866,0.00019178,2]
[324922934,1714421438083,-239.19602788,0.00019911,2]
[324922935,1714421438093,-5460.61782475,0.0002,2]
[324922936,1714421438102,-299.10346639,0.00020912,2]
[324922937,1714421438111,-1877.10804762,0.00020912,2]
[324922938,1714421438121,-603.57234398,0.00020912,2]
[324922939,1714421438131,-276.5697273,0.00020912,2]
[324922940,1714421438140,-474.79230604,0.00020912,2]
[324922941,1714421438151,-154.95418533,0.00020912,2]
[324922942,1714421438162,-154.99603486,0.00020912,2]
[324922943,1714421438172,-305.02639978,0.00020912,2]
[324922944,1714421438182,-228.69176972,0.00020912,2]
[324922945,1714421438192,-193.52697819,0.00020912,2]
[324922946,1714421438202,-157.76351589,0.00020912,2]
[324922947,1714421438211,-453.16333524,0.00020912,2]
[324922948,1714421438221,-524.84817716,0.00020912,2]
[324922949,1714421438231,-2623.01567159,0.00020912,2]
[324922950,1714421438241,-6404.4295328,0.00020912,2]
[324922951,1714421438250,-1548.96123813,0.00020912,2]
[324922952,1714421438259,-293.34340127,0.00020912,2]
[324922953,1714421438268,-250.4086408,0.00020912,2]
[324922954,1714421438277,-1090.08472256,0.00020912,2]
[324922955,1714421438287,-905.51690509,0.00020912,2]
[324922956,1714421438296,-835.12868552,0.00020912,2]
[324922957,1714421438306,-977.80653021,0.00020912,2]
[324922958,1714421438315,-1148.79410693,0.00020912,2]
[324922959,1714421438325,-283.28340864,0.00020913,2]
[324922960,1714421438335,-198.71185464,0.00022,2]
[324922961,1714421438344,-361.73417,0.00022466,2]
[324922962,1714421438355,-157.719918,0.00022466,2]
[324922963,1714421438365,-395.62538443,0.00023,2]
[324922964,1714421438374,-326.95692275,0.000239,2]
[324922965,1714421438384,-150.0,0.0002398,3]
[324922966,1714421438394,-156.18617837,0.00025114,2]
[324922967,1714421438409,-150.96142139,0.0002517,2]
[324922968,1714421438418,-153.00949749,0.00025226,2]
[324922969,1714421438428,-266.22968824,0.0002524,2]
[324922970,1714421438439,-266.22968824,0.00025393,2]
[324922971,1714421438449,-150.96142139,0.0002569,2]
[324922972,1714421438458,-1116.6496876,0.00026,2]
[324922973,1714421438468,-150.0,0.0002621,3]
[324922974,1714421438477,-150.96142139,0.00026268,2]
[324922975,1714421438487,-266.22968824,0.0002632,2]
[324922976,1714421438497,-153.7004997,0.00026388,2]
[324922977,1714421438506,-153.00949749,0.00026425,2]
[324922978,1714421438516,-6001.81523681,0.00027,2]
[324922979,1714421438526,-153.93095889,0.00027283,2]
[324922980,1714421438535,-156.18617837,0.00027353,2]
[324922981,1714421438545,-166.666666,0.00027397,2]
[324922982,1714421438554,-156.18617837,0.00027706,2]
[324922983,1714421438564,-266.22968824,0.00027789,2]
[324922984,1714421438573,-153.00949749,0.00027898,2]
[324922985,1714421438583,-156.18617837,0.00027999,2]
[324922986,1714421438593,-424.03324128,0.00028,2]
[324922987,1714421438602,-3754.1809699,0.00028,3]
[324922988,1714421438612,-150.96142139,0.00028036,2]
[324922989,1714421438621,-166.666666,0.00028038,2]
[324922990,1714421438631,-266.22968824,0.00028201,2]
[324922991,1714421438640,-153.7004997,0.00028368,2]
[324922992,1714421438649,-150.0,0.0002844,3]
[324922993,1714421438661,-361.73417,0.00028493,2]
[324922994,1714421438670,-179.193364,0.00028493,2]
[324922995,1714421438679,-179.193364,0.00028493,25]
[324922997,1714421438689,-179.193364,0.00028493,49]
[324922998,1714421438698,-179.193364,0.00028493,72]
[324923000,1714421438708,-179.193364,0.00028493,96]
[324923002,1714421438717,-179.193364,0.00028493,120]
[324923004,1714421438726,-1555.62550122,0.0002865,2]
[324923006,1714421438736,-150.96142139,0.00028675,2]
[324923008,1714421438745,-166.666666,0.00028679,2]
[324923010,1714421438754,-153.93095889,0.00028698,2]
[324923011,1714421438763,-35068.48,0.0002874,3]
[324923013,1714421438773,-42082.18,0.0002875,3]
[324923015,1714421438782,-50498.62,0.0002876,3]
[324923017,1714421438791,-127190.66315456,0.0002877,2]
[324923019,1714421438801,-326.95692275,0.000289,2]
[324923021,1714421438810,-266.22968824,0.00028907,2]
[324923023,1714421438819,-180.74166292,0.00028951,2]
[324923025,1714421438830,-153.7004997,0.0002917,2]
[324923027,1714421438839,-150.96142139,0.00029209,2]
[324923029,1714421438848,-166.666666,0.00029321,2]
[324923031,1714421438857,-150.96142139,0.00029463,2]
[324923033,1714421438866,-266.22968824,0.00029514,2]
[324923035,1714421438876,-150.96142139,0.0002955,2]
[324923037,1714421438885,-266.22968824,0.00029583,2]
[324923039,1714421438894,-153.7004997,0.00029814,2]
[324923041,1714421438904,-266.22968824,0.0002986,2]
[324923043,1714421438914,-177265.21522309,0.000299,2]
[324923045,1714421438924,-166.666666,0.00029962,2]
[324923047,1714421438933,-154.78330338,0.0003,4]
[324923049,1714421438942,-154.78330338,0.0003,4]
[324923051,1714421438951,-154.78330338,0.0003,4]
[324923053,1714421438960,-1366.26453115,0.0003,4]
[324923055,1714421438970,-222.0,0.0003,2]
[324923057,1714421438979,-156.18617837,0.00030195,7]
[324923059,1714421438988,-266.22968824,0.00030462,7]
[324923061,1714421438997,-166.666666,0.00030603,2]
[324923063,1714421439006,-150.0,0.0003066,3]
[324923065,1714421439015,-286.72543224,0.00031,2]
[324923067,1714421439024,-153.00949749,0.00031245,7]
[324923069,1714421439033,-150.96142139,0.00031278,7]
[324923071,1714421439042,-266.22968824,0.00031363,7]
[324923073,1714421439051,-266.22968824,0.00031429,7]
[324923075,1714421439060,-44444.0,0.00031493,3]
[324923077,1714421439069,-266.22968824,0.00031563,7]
[324923079,1714421439079,-29688.55303323,0.00031583,7]
[324923081,1714421439087,-625.9,0.00031583,120]
[324923083,1714421439096,-2483.30132558,0.00031583,2]
[324923085,1714421439105,-44421.76678401,0.00031583,2]
[324923086,1714421439114,-2187.0381657,0.00031583,2]
[324923087,1714421439122,-300.0,0.00031583,2]
[324923088,1714421439131,-781.30639903,0.00031583,2]
[324923089,1714421439140,-1192.06603489,0.00031583,14]
[324923090,1714421439149,-224.62805428,0.00031583,10]
[324923092,1714421439159,-286.55434273,0.00031583,2]
[324923094,1714421439169,-5455.20390675,0.00031583,2]
[324923096,1714421439178,-4087.68306417,0.00031583,2]
[324923098,1714421439187,-315.48630084,0.00031583,2]
[324923100,1714421439196,-281.12466351,0.00031583,2]
[324923102,1714421439206,-4578.11340256,0.00031583,2]
[324923104,1714421439215,-1022.94863432,0.00031583,10]
[324923106,1714421439224,-19196.75151336,0.00031583,2]
[324923108,1714421439233,-6632.5736523,0.00031583,5]
[324923110,1714421439242,-469.05936293,0.00031583,2]
[324923112,1714421439252,-430.70263388,0.00031583,2]
[324923114,1714421439262,-3011.72564414,0.00031583,2]
[324923116,1714421439271,-2867.67739548,0.00031583,2]
[324923118,1714421439281,-1003.38381317,0.00031583,2]
[324923120,1714421439290,-153.34957969,0.00031583,2]
[324923122,1714421439299,-153.34957969,0.00031583,2]
[324923124,1714421439308,-153.34957969,0.00031583,2]
[324923126,1714421439317,-153.34957969,0.00031583,2]
[324923128,1714421439326,-977.55062889,0.00031583,2]
[324923130,1714421439334,-266.22968824,0.00031626,7]
[324923132,1714421439344,-153.7004997,0.00031736,7]
[324923134,1714421439356,-153.7004997,0.00031794,7]
[324923136,1714421439365,-153.00949749,0.00031803,7]
[324923138,1714421439375,-151.13418049,0.00031999,2]
[324923139,1714421439384,-638.7649893,0.00032,4]
[324923141,1714421439394,-153.7004997,0.00032051,7]
[324923143,1714421439404,-150.77383924,0.00032407,2]
[324923145,1714421439414,-150.96142139,0.00032492,7]
[324923147,1714421439423,-153.00949749,0.00032599,7]
[324923149,1714421439434,-153.7004997,0.00032694,7]
[324923151,1714421439444,-500.0,0.00032876,10]
[324923153,1714421439453,-150.0,0.0003289,5]
[324923155,1714421439462,-301.54767848,0.00032951,4]
[324923157,1714421439471,-150.0,0.00032999,2]
[324923158,1714421439480,-222.0,0.00033,2]
[324923161,1714421439490,-222.0,0.00033,2]
[324923162,1714421439499,-603.09535696,0.00033505,7]
[324923164,1714421439508,-501.86462815,0.000338,60]
[324923166,1714421439517,-156.18617837,0.00033989,7]
[324923168,1714421439527,-466.35092847,0.00034,4]
[324923170,1714421439536,-16228.24523147,0.00034,60]
[324923172,1714421439546,-565.05492021,0.00034246,10]
[324923174,1714421439555,-266.22968824,0.00034256,7]
[324923176,1714421439564,-150.96142139,0.00034293,7]
[324923179,1714421439574,-1206.19071393,0.00034353,30]
[324923181,1714421439583,-361.73417,0.00034521,2]
[324923183,1714421439592,-153.00949749,0.00034528,7]
[324923185,1714421439602,-266.22968824,0.00034564,7]
[324923187,1714421439611,-156.18617837,0.00034634,7]
[324923189,1714421439620,-150.96142139,0.00034696,7]
[324923191,1714421439629,-266.22968824,0.00034726,7]
[324923193,1714421439639,-1271.52239957,0.00034728,12]
[324923195,1714421439648,-1000.0,0.000348,3]
[324923196,1714421439661,-26905.96443452,0.000349,2]
[324923198,1714421439671,-1307.89147106,0.00035,7]
[324923201,1714421439680,-1025.00357517,0.00035,2]
[324923204,1714421439690,-1329.78267311,0.00035,4]
[324923207,1714421439699,-154.78330338,0.00035,4]
[324923209,1714421439709,-447.0489704,0.00035,10]
[324923211,1714421439719,-5914.65556104,0.00035,4]
[324923213,1714421439728,-10285.44452255,0.00035,2]
[324923215,1714421439738,-33147.42444606,0.00035,7]
[324923217,1714421439748,-2102.2310673,0.00035,120]
[324923219,1714421439757,-12756.78468986,0.00035,4]
[324923221,1714421439767,-791.81686347,0.00035,30]
[324923223,1714421439776,-961.68740692,0.00035,30]
[324923225,1714421439786,-180.74166292,0.0003502,2]
[324923227,1714421439796,-150.0,0.0003512,7]
[324923229,1714421439807,-157.719918,0.0003519,2]
[324923231,1714421439818,-150.96142139,0.00035214,7]
[324923233,1714421439827,-266.22968824,0.00035379,7]
[324923235,1714421439837,-1508.16249302,0.00035455,14]
[324923237,1714421439846,-2898.028638,0.00035616,120]
[324923239,1714421439855,-266.22968824,0.000358,7]
[324923241,1714421439864,-154.78330338,0.0003589,2]
[324923242,1714421439873,-266.22968824,0.00035947,7]
[324923244,1714421439882,-1828.44111052,0.00036,30]
[324923246,1714421439891,-62070.07144477,0.00036,14]
[324923248,1714421439901,-222.0,0.00036,2]
[324923250,1714421439915,-222.0,0.00036,2]
[324923252,1714421439924,-222.0,0.00036,2]
[324923254,1714421439934,-153.7004997,0.00036089,7]
[324923257,1714421439943,-150.96142139,0.0003615,7]
[324923259,1714421439952,-153.93095889,0.00036172,7]
[324923260,1714421439962,-256.30765386,0.0003624,2]
[324923262,1714421439971,-266.22968824,0.00036386,7]
[324923264,1714421439980,-153.7004997,0.00036392,7]
[324923266,1714421439989,-156.18617837,0.00036518,7]
[324923268,1714421439999,-150.96142139,0.00036713,7]
[324923270,1714421440009,-266.22968824,0.00036777,7]
[324923272,1714421440019,-266.22968824,0.00036781,7]
[324923274,1714421440029,-153.7004997,0.00036914,7]
[324923276,1714421440039,-153.93095889,0.00036973,7]
[324923278,1714421440048,-3512.35610251,0.00037,2]
[324923280,1714421440058,-10579.73867581,0.00037,2]
[324923282,1714421440068,-153.7004997,0.00037091,7]
[324923284,1714421440077,-89867.52325477,0.0003717,2]
[324923286,1714421440087,-150.0,0.0003735,14]
[324923288,1714421440097,-150.0,0.000375,32]
[324923299,1714421440212,-153.7004997,0.00037555,7]
[324923300,1714421440222,-153.7004997,0.00037597,7]
[324923301,1714421440231,-250.0,0.00037648,2]
[324923302,1714421440240,-417.0,0.00037648,2]
[324923303,1714421440249,-150.0,0.00037648,2]
[324923304,1714421440258,-150.96142139,0.00037704,7]
[324923305,1714421440268,-150.96142139,0.0003787,7]
[324923306,1714421440277,-153.0,0.00037908,2]
[324923307,1714421440287,-153.7952465,0.00037908,2]
[324923308,1714421440297,-266.22968824,0.00037909,7]
[324923309,1714421440306,-5009.79512819,0.00038,2]
[324923310,1714421440316,-153.00949749,0.00038037,7]
[324923311,1714421440325,-153.7004997,0.00038249,7]
[324923312,1714421440334,-266.22968824,0.00038425,7]
[324923313,1714421440344,-150.96142139,0.00038659,7]
[324923314,1714421440355,-224.34545947,0.00038685,7]
[324923315,1714421440364,-153.7004997,0.00038915,7]
[324923316,1714421440374,-5000.0,0.00039,5]
[324923317,1714421440383,-222.0,0.00039,2]
[324923318,1714421440394,-222.0,0.00039,2]
[324923319,1714421440403,-222.0,0.00039,2]
[324923320,1714421440414,-153.93095889,0.00039003,7]
[324923322,1714421440423,-232.10092761,0.00039397,30]
[324923324,1714421440434,-150.0,0.0003958,14]
[324923326,1714421440443,-156.18617837,0.00039626,7]
[324923328,1714421440453,-156.18617837,0.00039743,7]
[324923330,1714421440462,-266.22968824,0.00039752,7]
[324923332,1714421440471,-150.96142139,0.00039823,7]
[324923334,1714421440481,-153.7004997,0.00039858,7]
[324923335,1714421440491,-266.22968824,0.00039869,7]
[324923338,1714421440501,-1159.84144778,0.0003988,120]
[324923339,1714421440511,-2710.87,0.00039998,2]
[324923342,1714421440520,-2710.87,0.00039998,2]
[324923344,1714421440529,-2710.87,0.00039998,2]
[324923345,1714421440538,-2710.87,0.00039998,2]
[324923348,1714421440547,-2710.87,0.00039998,2]
[324923349,1714421440557,-2710.87,0.00039998,2]
[324923352,1714421440566,-14787.78197068,0.0004,7]
[324923354,1714421440575,-4253.66286157,0.0004,4]
[324923355,1714421440584,-995.16145114,0.0004,10]
[324923357,1714421440593,-7480.50380699,0.0004,2]
[324923360,1714421440603,-26617.19104662,0.0004,7]
[324923362,1714421440617,-2796.73495305,0.0004,7]
[324923519,1714421443152,-0.00962526,0.00037907,2]
[324923566,1714421446022,-1084.33037474,0.00037907,2]
[324923568,1714421446031,-1084.34,0.00037907,2]
[324923570,1714421446041,-1084.34,0.00037907,2]
[324923572,1714421446050,-1084.34,0.00037907,2]
[324923573,1714421446060,-1084.34,0.00037907,2]
[324923574,1714421446069,-1084.34,0.00037907,2]
[324923576,1714421446078,-1084.34,0.00037907,2]
[324923578,1714421446086,-1084.34,0.00037907,2]
[324923580,1714421446097,-1084.34,0.00037907,2]
[324923582,1714421446106,-1084.34,0.00037907,2]
[324923583,1714421446115,-26631.84681006,0.0004,7]
[324923585,1714421446125,-2707.999999,0.0004,30]
[324923587,1714421446134,-1590.52958367,0.0004,15]
[324923589,1714421446143,-4804.0521499,0.0004,2]
[324923592,1714421446152,-359.6913144,0.0004,2]
[324923596,1714421446282,-1089.44403781,0.0004,2]
[324923597,1714421446291,-210.13266618,0.0004,120]
[324923598,1714421446301,-379.95934411,0.0004,120]
[324923599,1714421446310,-153.03,0.0004,120]
[324923600,1714421446319,-154.78330338,0.0004,2]
[324923601,1714421446328,-266.22968824,0.00040047,30]
[324923602,1714421446337,-266.22968824,0.00040051,30]
[324923603,1714421446348,-13772.3960811,0.0004013,2]
[324923604,1714421446360,-156.18617839,0.00040152,30]
[324923605,1714421446369,-150.96142139,0.00040308,30]
[324923606,1714421446379,-153.93095891,0.00040536,30]
[324923607,1714421446388,-361.73417,0.00040548,2]
[324923608,1714421446398,-10000.0,0.00040583,2]
[324923609,1714421446408,-150.0,0.00040648,2]
[324923610,1714421446418,-417.0,0.00040648,2]
[324923611,1714421446428,-150.0,0.00040648,2]
[324923612,1714421446437,-153.70049982,0.00040701,30]
[324923613,1714421446446,-150.96142158,0.00040937,30]
[324923614,1714421446455,-252.6859923,0.00041,2]
[324923615,1714421446465,-162.0,0.00041,14]
[324923616,1714421446475,-189.06259956,0.00041,2]
[324923617,1714421446483,-4999.999999,0.00041,120]
[324923618,1714421446493,-3849.5,0.00041,120]
[324923619,1714421446502,-1237.7995211,0.00041096,7]
[324923620,1714421446511,-178.0504269,0.00041096,2]
[324923621,1714421446521,-400.0,0.00041096,30]
[324923622,1714421446530,-550.8267117,0.00041096,31]
[324923623,1714421446539,-550.8267117,0.00041096,31]
[324923624,1714421446548,-550.8267117,0.00041096,31]
[324923625,1714421446557,-550.8267117,0.00041096,31]
[324923626,1714421446566,-550.8267117,0.00041096,31]
[324923627,1714421446575,-550.8267117,0.00041096,31]
[324923628,1714421446584,-550.8267117,0.00041096,31]
[324923629,1714421446595,-550.8267117,0.00041096,31]
[324923630,1714421446604,-550.8267117,0.00041096,31]
[324923631,1714421446614,-550.8267117,0.00041096,31]
[324923632,1714421446623,-550.8267117,0.00041096,31]
[324923633,1714421446632,-550.8267117,0.00041096,31]
[324923634,1714421446641,-550.8267117,0.00041096,31]
[324923635,1714421446651,-550.8267117,0.00041096,31]
[324923636,1714421446660,-550.8267117,0.00041096,31]
[324923637,1714421446671,-550.8267117,0.00041096,31]
[324923638,1714421446679,-550.8267117,0.00041096,31]
[324923639,1714421446688,-550.8267117,0.00041096,31]
[324923640,1714421446697,-550.8267117,0.00041096,31]
[324923641,1714421446706,-550.8267117,0.00041096,31]
[324923642,1714421446715,-550.8267117,0.00041096,31]
[324923643,1714421446724,-550.8267117,0.00041096,31]
[324923644,1714421446734,-550.8267117,0.00041096,31]
[324923645,1714421446743,-550.8267117,0.00041096,31]
[324923646,1714421446753,-550.8267117,0.00041096,31]
[324923647,1714421446763,-550.8267117,0.00041096,31]
[324923648,1714421446773,-550.8267117,0.00041096,31]
[324923649,1714421446783,-550.8267117,0.00041096,31]
[324923650,1714421446792,-550.8267117,0.00041096,31]
[324923651,1714421446801,-550.8267117,0.00041096,31]
[324923652,1714421446810,-550.8267117,0.00041096,31]
[324923653,1714421446820,-550.8267117,0.00041096,31]
[324923654,1714421446829,-550.8267117,0.00041096,31]
[324923655,1714421446839,-550.8267117,0.00041096,31]
[324923656,1714421446848,-550.8267117,0.00041096,31]
[324923657,1714421446858,-550.8267117,0.00041096,31]
[324923658,1714421446867,-550.8267117,0.00041096,31]
[324923659,1714421446876,-550.8267117,0.00041096,31]
[324923660,1714421446886,-550.8267117,0.00041096,31]
[324923661,1714421446896,-550.8267117,0.00041096,31]
[324923662,1714421446905,-550.8267117,0.00041096,31]
[324923663,1714421446915,-550.8267117,0.00041096,31]
[324923664,1714421446926,-550.8267117,0.00041096,31]
[324923665,1714421446935,-550.8267117,0.00041096,31]
[324923666,1714421446944,-550.8267117,0.00041096,31]
[324923667,1714421446953,-550.8267117,0.00041096,31]
[324923668,1714421446963,-266.22968848,0.00041206,30]
[324923669,1714421446973,-1452.36690419,0.00041239,11]
[324923670,1714421446983,-162.0,0.0004137,90]
[324923671,1714421446991,-404.099999,0.000414,15]
[324923672,1714421447001,-2898.028638,0.00041553,120]
[324923673,1714421447010,-645.7,0.0004162,30]
[324923674,1714421447019,-949.9706489,0.00041656,11]
[324923675,1714421447028,-14535.94593043,0.00041765,2]
[324923676,1714421447037,-177.0,0.000418,19]
[324923677,1714421447046,-150.0,0.0004181,30]
[324923678,1714421447056,-150.5,0.00041838,35]
[324923679,1714421447065,-967.0,0.00041838,35]
[324923680,1714421447075,-150.5,0.00041838,7]
[324923681,1714421447084,-150.5,0.00041848,35]
[324923682,1714421447093,-967.0,0.00041848,35]
[324923683,1714421447102,-150.5,0.00041848,7]
[324923684,1714421447111,-150.5,0.00041858,35]
[324923685,1714421447121,-967.0,0.00041858,35]
[324923686,1714421447130,-150.5,0.00041858,7]
[324923687,1714421447139,-2000.0,0.00041865,2]
[324923688,1714421447148,-16270.35773535,0.00041865,120]
[324923689,1714421447157,-154.78330338,0.00041865,15]
[324923690,1714421447168,-1452.47576498,0.00041865,4]
[324923691,1714421447178,-154.78330338,0.00041865,68]
[324923692,1714421447187,-6073.25093483,0.00041865,20]
[324923693,1714421447196,-2401.59068717,0.00041865,2]
[324923694,1714421447205,-175290.00946481,0.00041865,120]
[324923695,1714421447215,-151.0,0.00041865,7]
[324923696,1714421447224,-151.0,0.00041865,7]
[324923697,1714421447233,-255.413814,0.00041865,7]
[324923698,1714421447242,-255.413814,0.00041865,7]
[324923699,1714421447251,-151.0,0.00041865,7]
[324923700,1714421447260,-151.0,0.00041865,7]
[324923701,1714421447269,-151.0,0.00041865,7]
[324923702,1714421447278,-721.04711,0.00041865,7]
[324923703,1714421447287,-721.04711,0.00041865,7]
[324923704,1714421447296,-269.821985,0.00041865,7]
[324923705,1714421447305,-1092.826854,0.00041865,7]
[324923706,1714421447314,-1092.826854,0.00041865,7]
[324923707,1714421447323,-151.0,0.00041865,7]
[324923708,1714421447332,-151.0,0.00041865,7]
[324923709,1714421447342,-198.293356,0.00041865,7]
[324923710,1714421447355,-198.293356,0.00041865,7]
[324923711,1714421447365,-151.0,0.00041865,7]
[324923712,1714421447376,-829.690022,0.00041865,7]
[324923713,1714421447387,-829.690022,0.00041865,7]
[324923714,1714421447396,-158.249862,0.00041865,7]
[324923715,1714421447406,-636.106117,0.00041865,7]
[324923716,1714421447420,-636.106117,0.00041865,7]
[324923717,1714421447432,-151.0,0.00041865,7]
[324923718,1714421447442,-3217.233928,0.00041865,7]
[324923719,1714421447451,-3217.233928,0.00041865,7]
[324923720,1714421447460,-151.0,0.00041865,7]
[324923721,1714421447470,-151.0,0.00041865,7]
[324923722,1714421447479,-151.0,0.00041865,3]
[324923723,1714421447489,-4896.09833,0.00041865,7]
[324923724,1714421447498,-4896.09833,0.00041865,7]
[324923725,1714421447507,-512.439697,0.00041865,7]
[324923726,1714421447516,-512.439697,0.00041865,7]
[324923727,1714421447526,-151.0,0.00041865,7]
[324923728,1714421447535,-151.0,0.00041865,7]
[324923729,1714421447544,-242.612938,0.00041868,7]
[324923730,1714421447555,-151.0,0.00041868,7]
[324923731,1714421447564,-242.612938,0.00041868,7]
[324923732,1714421447574,-151.0,0.00041868,7]
[324923733,1714421447583,-151.0,0.00041868,7]
[324923734,1714421447593,-151.0,0.00041868,7]
[324923735,1714421447602,-151.0,0.00041868,7]
[324923736,1714421447611,-151.0,0.00041868,7]
[324923737,1714421447620,-151.0,0.00041868,7]
[324923738,1714421447629,-767.421587,0.00041868,7]
[324923739,1714421447638,-767.421587,0.00041868,7]
[324923740,1714421447647,-151.0,0.00041868,7]
[324923741,1714421447656,-253.524482,0.00041868,7]
[324923742,1714421447665,-255.413814,0.00041868,7]
[324923743,1714421447676,-255.413814,0.00041868,7]
[324923744,1714421447685,-151.0,0.00041868,7]
[324923745,1714421447695,-151.0,0.00041868,7]
[324923746,1714421447704,-151.0,0.00041868,7]
[324923747,1714421447714,-151.0,0.00041868,7]
[324923748,1714421447724,-1067.904186,0.00041868,7]
[324923749,1714421447733,-1067.904186,0.00041868,7]
[324923750,1714421447742,-151.0,0.00041868,7]
[324923751,1714421447751,-151.0,0.00041868,7]
[324923752,1714421447760,-721.04711,0.00041868,7]
[324923753,1714421447770,-721.04711,0.00041868,7]
[324923754,1714421447779,-269.821985,0.00041868,7]